[Event "Titled Tuesday Blitz August 24 2021"]
[White "Srihari L R"]
[Black "Sadykov, Ramil"]
[WhiteFideId "46617116"]
[BlackFideId "24113590"]
[WhiteElo "2121"]
[BlackElo "2300"]
[Result "1-0"]
[Round "10"]
[TimeControl "180+1"]
[Date "2021.08.24"]
[WhiteClock "0:02:06"]
[BlackClock "0:00:26"]

1. Nf3 {[%clk 0:03:00]}  Nf6 {[%clk 0:01:49]} 2. g3 {[%clk 0:02:51]}  g6 {[%clk 0:01:48]} 3. Bg2 {[%clk 0:02:48]}  Bg7 {[%clk 0:01:48]} 4. O-O {[%clk 0:02:46]}  O-O {[%clk 0:01:48]} 5. d4 {[%clk 0:02:45]}  d5 {[%clk 0:01:48]} 6. c4 {[%clk 0:02:44]}  c6 {[%clk 0:01:49]} 7. cxd5 {[%clk 0:02:43]}  cxd5 {[%clk 0:01:50]} 8. Nc3 {[%clk 0:02:44]}  Ne4 {[%clk 0:01:49]} 9. Ne5 {[%clk 0:02:45]}  Nxc3 {[%clk 0:01:45]} 10. bxc3 {[%clk 0:02:46]}  Nc6 {[%clk 0:01:45]} 11. Bf4 {[%clk 0:02:44]}  Nxe5 {[%clk 0:01:34]} 12. Bxe5 {[%clk 0:02:45]}  Bxe5 {[%clk 0:01:15]} 13. dxe5 {[%clk 0:02:43]}  Be6 {[%clk 0:01:15]} 14. Rb1 {[%clk 0:02:41]}  Qc7 {[%clk 0:01:12]} 15. Bxd5 {[%clk 0:02:38]}  Rfd8 {[%clk 0:01:04]} 16. e4 {[%clk 0:02:23]}  Qxe5 {[%clk 0:00:59]} 17. Rxb7 {[%clk 0:02:15]}  Bh3 {[%clk 0:00:48]} 18. Qf3 {[%clk 0:02:12]}  Be6 {[%clk 0:00:29]} 19. Rxe7 {[%clk 0:02:08]}  Rac8 {[%clk 0:00:26]} 20. Bxe6 {[%clk 0:02:06]} 1-0


[Site "https://www.chess.com"]

[Event "Titled Tuesday Blitz August 24 2021"]
[White "Stoyanov, Tsvetan"]
[Black "Drozdowski, Kacper"]
[WhiteFideId "2917173"]
[BlackFideId "1136720"]
[WhiteElo "2191"]
[BlackElo "2507"]
[Result "1-0"]
[Round "10"]
[TimeControl "180+1"]
[Date "2021.08.24"]
[WhiteClock "0:00:05"]
[BlackClock "0:00:35"]

1. e4 {[%clk 0:03:00]}  c5 {[%clk 0:02:58]} 2. Nf3 {[%clk 0:03:01]}  e6 {[%clk 0:02:58]} 3. d4 {[%clk 0:03:01]}  cxd4 {[%clk 0:02:59]} 4. Nxd4 {[%clk 0:03:02]}  a6 {[%clk 0:03:00]} 5. Nc3 {[%clk 0:03:02]}  Qc7 {[%clk 0:03:01]} 6. Bd3 {[%clk 0:03:01]}  Nc6 {[%clk 0:03:00]} 7. Nxc6 {[%clk 0:02:58]}  dxc6 {[%clk 0:03:01]} 8. O-O {[%clk 0:02:57]}  e5 {[%clk 0:03:01]} 9. f4 {[%clk 0:02:57]}  Nf6 {[%clk 0:03:01]} 10. Kh1 {[%clk 0:02:56]}  Bc5 {[%clk 0:02:55]} 11. f5 {[%clk 0:02:49]}  b5 {[%clk 0:02:54]} 12. Qe1 {[%clk 0:02:47]}  h5 {[%clk 0:02:46]} 13. a4 {[%clk 0:02:45]}  Bb7 {[%clk 0:02:41]} 14. Qh4 {[%clk 0:02:44]}  Ng4 {[%clk 0:02:30]} 15. h3 {[%clk 0:02:37]}  Nf6 {[%clk 0:02:11]} 16. Bg5 {[%clk 0:02:33]}  Be7 {[%clk 0:02:10]} 17. Nd1 {[%clk 0:02:07]}  Rd8 {[%clk 0:02:07]} 18. Ne3 {[%clk 0:02:02]}  Rd4 {[%clk 0:02:06]} 19. Rfd1 {[%clk 0:01:51]}  Qd8 {[%clk 0:02:05]} 20. Qg3 {[%clk 0:01:41]}  h4 {[%clk 0:02:02]} 21. Qxe5 {[%clk 0:01:31]}  O-O {[%clk 0:01:53]} 22. axb5 {[%clk 0:01:12]}  axb5 {[%clk 0:01:53]} 23. Ra7 {[%clk 0:01:07]}  Rd7 {[%clk 0:01:52]} 24. Bxh4 {[%clk 0:00:56]}  Bd6 {[%clk 0:01:44]} 25. Qc3 {[%clk 0:00:56]}  Nxe4 {[%clk 0:01:38]} 26. Bxe4 {[%clk 0:00:35]}  Qxh4 {[%clk 0:01:38]} 27. Rxb7 {[%clk 0:00:27]}  Rxb7 {[%clk 0:01:33]} 28. Bxc6 {[%clk 0:00:22]}  Qf4 {[%clk 0:01:27]} 29. Rxd6 {[%clk 0:00:20]}  Rc7 {[%clk 0:01:19]} 30. Rd3 {[%clk 0:00:20]}  Re8 {[%clk 0:00:50]} 31. Bxe8 {[%clk 0:00:13]}  Rxc3 {[%clk 0:00:50]} 32. bxc3 {[%clk 0:00:14]}  Qe5 {[%clk 0:00:43]} 33. Bc6 {[%clk 0:00:14]}  Kh7 {[%clk 0:00:42]} 34. Kg1 {[%clk 0:00:12]}  Qc5 {[%clk 0:00:42]} 35. Be4 {[%clk 0:00:12]}  Qe5 {[%clk 0:00:42]} 36. Bf3 {[%clk 0:00:10]}  Qc5 {[%clk 0:00:42]} 37. Kf2 {[%clk 0:00:11]}  Kh6 {[%clk 0:00:42]} 38. Ke2 {[%clk 0:00:10]}  Kg5 {[%clk 0:00:42]} 39. g3 {[%clk 0:00:09]}  Qe5 {[%clk 0:00:38]} 40. h4+ {[%clk 0:00:09]}  Kh6 {[%clk 0:00:38]} 41. Kf2 {[%clk 0:00:09]}  Kh7 {[%clk 0:00:38]} 42. Rd5 {[%clk 0:00:08]}  Qxc3 {[%clk 0:00:38]} 43. Rxb5 {[%clk 0:00:08]}  Qd2+ {[%clk 0:00:38]} 44. Be2 {[%clk 0:00:09]}  Kh6 {[%clk 0:00:37]} 45. Rd5 {[%clk 0:00:07]}  Qc3 {[%clk 0:00:37]} 46. Rd3 {[%clk 0:00:08]}  Qc5 {[%clk 0:00:37]} 47. c4 {[%clk 0:00:08]}  g6 {[%clk 0:00:37]} 48. Rd5 {[%clk 0:00:08]}  Qc7 {[%clk 0:00:36]} 49. fxg6 {[%clk 0:00:08]}  fxg6 {[%clk 0:00:37]} 50. c5 {[%clk 0:00:09]}  Kg7 {[%clk 0:00:37]} 51. Bb5 {[%clk 0:00:08]}  Kf6 {[%clk 0:00:37]} 52. c6 {[%clk 0:00:08]}  Qb6 {[%clk 0:00:36]} 53. Rd6+ {[%clk 0:00:06]}  Ke5 {[%clk 0:00:35]} 54. Rd5+ {[%clk 0:00:07]}  Ke4 {[%clk 0:00:35]} 55. Bd3# {[%clk 0:00:05]} 1-0


[Site "https://www.chess.com"]

[Event "Titled Tuesday Blitz August 24 2021"]
[White "Tanenbaum, Zachary"]
[Black "Maltsevskaya, Aleksandra"]
[WhiteFideId "2060850"]
[BlackFideId "24174041"]
[WhiteElo "2165"]
[BlackElo "2225"]
[Result "0-1"]
[Round "10"]
[TimeControl "180+1"]
[Date "2021.08.24"]
[WhiteClock "0:00:01"]
[BlackClock "0:00:02"]

1. e4 {[%clk 0:02:59]}  c5 {[%clk 0:02:48]} 2. Nf3 {[%clk 0:02:59]}  e6 {[%clk 0:02:48]} 3. d4 {[%clk 0:03:00]}  cxd4 {[%clk 0:02:49]} 4. Nxd4 {[%clk 0:03:00]}  Nf6 {[%clk 0:02:49]} 5. Nc3 {[%clk 0:03:00]}  Nc6 {[%clk 0:02:49]} 6. Ndb5 {[%clk 0:03:00]}  Bc5 {[%clk 0:02:49]} 7. Nd6+ {[%clk 0:02:59]}  Ke7 {[%clk 0:02:50]} 8. Bf4 {[%clk 0:03:00]}  e5 {[%clk 0:02:50]} 9. Nf5+ {[%clk 0:03:00]}  Kf8 {[%clk 0:02:50]} 10. Bg5 {[%clk 0:03:01]}  h6 {[%clk 0:02:48]} 11. Bxf6 {[%clk 0:03:01]}  Qxf6 {[%clk 0:02:49]} 12. Nd5 {[%clk 0:02:57]}  Qd8 {[%clk 0:02:49]} 13. Bc4 {[%clk 0:02:50]}  g6 {[%clk 0:02:48]} 14. Nfe3 {[%clk 0:02:47]}  d6 {[%clk 0:02:49]} 15. c3 {[%clk 0:02:46]}  Be6 {[%clk 0:02:49]} 16. O-O {[%clk 0:02:37]}  Qh4 {[%clk 0:02:46]} 17. Qf3 {[%clk 0:02:32]}  Kg7 {[%clk 0:02:44]} 18. Nc7 {[%clk 0:02:17]}  Bxc4 {[%clk 0:02:40]} 19. Nxc4 {[%clk 0:02:18]}  Rac8 {[%clk 0:02:37]} 20. Nd5 {[%clk 0:02:18]}  Rhf8 {[%clk 0:02:35]} 21. g3 {[%clk 0:02:17]}  Qd8 {[%clk 0:02:29]} 22. b4 {[%clk 0:02:13]}  Bb6 {[%clk 0:02:26]} 23. Rad1 {[%clk 0:01:56]}  Nd4 {[%clk 0:02:16]} 24. Qd3 {[%clk 0:01:55]}  Ne6 {[%clk 0:01:41]} 25. Ndxb6 {[%clk 0:01:44]}  axb6 {[%clk 0:01:42]} 26. Nxd6 {[%clk 0:01:43]}  Ra8 {[%clk 0:01:39]} 27. Qc4 {[%clk 0:01:38]}  Qf6 {[%clk 0:01:34]} 28. Nxb7 {[%clk 0:01:00]}  Rfc8 {[%clk 0:01:33]} 29. Qd5 {[%clk 0:00:56]}  Rxc3 {[%clk 0:01:12]} 30. Nc5 {[%clk 0:00:56]}  bxc5 {[%clk 0:01:01]} 31. Qxa8 {[%clk 0:00:56]}  Ng5 {[%clk 0:01:02]} 32. h4 {[%clk 0:00:27]}  Nf3+ {[%clk 0:00:59]} 33. Kh1 {[%clk 0:00:22]}  Nxh4 {[%clk 0:00:59]} 34. f4 {[%clk 0:00:17]}  Rxg3 {[%clk 0:00:51]} 35. Qd8 {[%clk 0:00:15]}  Qe6 {[%clk 0:00:28]} 36. f5 {[%clk 0:00:15]}  Qxa2 {[%clk 0:00:18]} 37. Rd2 {[%clk 0:00:12]}  Qb3 {[%clk 0:00:15]} 38. Rh2 {[%clk 0:00:04]}  Rh3 {[%clk 0:00:15]} 39. f6+ {[%clk 0:00:02]}  Kh7 {[%clk 0:00:15]} 40. Qd2 {[%clk 0:00:02]}  Qg3 {[%clk 0:00:02]} 41. bxc5 {[%clk 0:00:02]}  Nf3 {[%clk 0:00:01]} 42. Rxf3 {[%clk 0:00:01]}  Qxf3+ {[%clk 0:00:02]} 0-1


[Site "https://www.chess.com"]

[Event "Titled Tuesday Blitz August 24 2021"]
[White "TanitoluwaAps116"]
[Black "Ulko, Jaroslav"]
[BlackFideId "4116658"]
[WhiteElo "2476"]
[BlackElo "2304"]
[Result "0-1"]
[Round "10"]
[TimeControl "180+1"]
[Date "2021.08.24"]
[WhiteClock "0:00:07"]
[BlackClock "0:00:13"]

1. d4 {[%clk 0:02:47]}  Nf6 {[%clk 0:02:59]} 2. c4 {[%clk 0:02:46]}  g6 {[%clk 0:02:59]} 3. Nc3 {[%clk 0:02:46]}  Bg7 {[%clk 0:02:59]} 4. e4 {[%clk 0:02:45]}  d6 {[%clk 0:02:59]} 5. f3 {[%clk 0:02:45]}  O-O {[%clk 0:02:58]} 6. Be3 {[%clk 0:02:45]}  e5 {[%clk 0:02:58]} 7. d5 {[%clk 0:02:45]}  c6 {[%clk 0:02:56]} 8. Qd2 {[%clk 0:02:44]}  cxd5 {[%clk 0:02:56]} 9. cxd5 {[%clk 0:02:45]}  a6 {[%clk 0:02:55]} 10. a4 {[%clk 0:02:43]}  Nh5 {[%clk 0:02:37]} 11. g3 {[%clk 0:02:41]}  f5 {[%clk 0:02:33]} 12. Bf2 {[%clk 0:02:37]}  Nd7 {[%clk 0:02:30]} 13. b4 {[%clk 0:02:35]}  Ndf6 {[%clk 0:02:29]} 14. a5 {[%clk 0:02:26]}  Bd7 {[%clk 0:02:15]} 15. Bb6 {[%clk 0:02:14]}  Qe7 {[%clk 0:01:58]} 16. Bd3 {[%clk 0:02:07]}  Rac8 {[%clk 0:01:50]} 17. Nge2 {[%clk 0:02:04]}  fxe4 {[%clk 0:01:41]} 18. fxe4 {[%clk 0:02:05]}  Bh3 {[%clk 0:01:33]} 19. Rg1 {[%clk 0:01:26]}  Ng4 {[%clk 0:01:29]} 20. Nc1 {[%clk 0:01:03]}  Bh6 {[%clk 0:01:24]} 21. Qc2 {[%clk 0:01:03]}  Ne3 {[%clk 0:00:57]} 22. Qe2 {[%clk 0:00:39]}  Bf1 {[%clk 0:00:33]} 23. Qb2 {[%clk 0:00:08]}  Bxd3 {[%clk 0:00:20]} 24. Nxd3 {[%clk 0:00:09]}  Nc4 {[%clk 0:00:20]} 25. Qe2 {[%clk 0:00:06]}  Bd2+ {[%clk 0:00:20]} 26. Qxd2 {[%clk 0:00:06]}  Nxd2 {[%clk 0:00:19]} 27. Kxd2 {[%clk 0:00:07]}  Nf6 {[%clk 0:00:19]} 28. Nf2 {[%clk 0:00:04]}  Nd7 {[%clk 0:00:18]} 29. Be3 {[%clk 0:00:04]}  Rf3 {[%clk 0:00:18]} 30. Rae1 {[%clk 0:00:03]}  Rcf8 {[%clk 0:00:13]} 31. Ng4 {[%clk 0:00:03]}  h5 {[%clk 0:00:13]} 32. Nh6+ {[%clk 0:00:02]}  Kh7 {[%clk 0:00:13]} 33. Rg2 {[%clk 0:00:01]}  Rxe3 {[%clk 0:00:13]} 34. Rxe3 {[%clk 0:00:01]}  Kxh6 {[%clk 0:00:13]} 35. Rge2 {[%clk 0:00:02]}  Nf6 {[%clk 0:00:12]} 36. h4 {[%clk 0:00:03]}  Ng4 {[%clk 0:00:12]} 37. Rd3 {[%clk 0:00:04]}  Rf1 {[%clk 0:00:12]} 38. Kc2 {[%clk 0:00:03]}  Qc7 {[%clk 0:00:12]} 39. Kb3 {[%clk 0:00:03]}  Rc1 {[%clk 0:00:11]} 40. Rc2 {[%clk 0:00:03]}  Rxc2 {[%clk 0:00:11]} 41. Kxc2 {[%clk 0:00:04]}  Qc4 {[%clk 0:00:11]} 42. b5 {[%clk 0:00:02]}  axb5 {[%clk 0:00:11]} 43. Rd1 {[%clk 0:00:02]}  b4 {[%clk 0:00:11]} 44. Rd3 {[%clk 0:00:03]}  bxc3 {[%clk 0:00:11]} 45. Rxc3 {[%clk 0:00:04]}  Qxe4+ {[%clk 0:00:11]} 46. Kb3 {[%clk 0:00:05]}  Qxd5+ {[%clk 0:00:12]} 47. Rc4 {[%clk 0:00:05]}  Ne3 {[%clk 0:00:11]} 48. Kb4 {[%clk 0:00:06]}  Qxc4+ {[%clk 0:00:12]} 49. Ka3 {[%clk 0:00:06]}  Qb5 {[%clk 0:00:12]} 50. Ka2 {[%clk 0:00:06]}  Nc4 {[%clk 0:00:13]} 51. Ka1 {[%clk 0:00:07]}  Qb2# {[%clk 0:00:13]} 0-1


[Site "https://www.chess.com"]

[Event "Titled Tuesday Blitz August 24 2021"]
[White "Temirkanov, David"]
[Black "Grafil, Franz Robert"]
[WhiteFideId "4168534"]
[BlackFideId "5205298"]
[WhiteElo "2125"]
[BlackElo "2211"]
[Result "0-1"]
[Round "10"]
[TimeControl "180+1"]
[Date "2021.08.24"]
[WhiteClock "0:00:09"]
[BlackClock "0:00:03"]

1. e4 {[%clk 0:03:00]}  e6 {[%clk 0:02:58]} 2. d4 {[%clk 0:02:59]}  d5 {[%clk 0:02:58]} 3. exd5 {[%clk 0:03:00]}  exd5 {[%clk 0:02:57]} 4. c4 {[%clk 0:03:00]}  Nf6 {[%clk 0:02:57]} 5. Nc3 {[%clk 0:02:59]}  Bb4 {[%clk 0:02:49]} 6. Nf3 {[%clk 0:02:59]}  O-O {[%clk 0:02:49]} 7. Bd3 {[%clk 0:02:59]}  dxc4 {[%clk 0:02:49]} 8. Bxc4 {[%clk 0:02:59]}  Nbd7 {[%clk 0:02:49]} 9. O-O {[%clk 0:02:56]}  Nb6 {[%clk 0:02:49]} 10. Bb3 {[%clk 0:02:54]}  Bg4 {[%clk 0:02:48]} 11. Bg5 {[%clk 0:02:49]}  c6 {[%clk 0:02:35]} 12. h3 {[%clk 0:02:46]}  Bh5 {[%clk 0:02:34]} 13. Ne4 {[%clk 0:02:36]}  Be7 {[%clk 0:02:32]} 14. Ng3 {[%clk 0:02:35]}  Bg6 {[%clk 0:02:18]} 15. Ne5 {[%clk 0:02:31]}  Nfd5 {[%clk 0:02:16]} 16. Be3 {[%clk 0:02:17]}  Bf6 {[%clk 0:02:04]} 17. Re1 {[%clk 0:02:01]}  Re8 {[%clk 0:02:01]} 18. Ng4 {[%clk 0:01:50]}  Bh4 {[%clk 0:01:54]} 19. Qf3 {[%clk 0:01:47]}  Nxe3 {[%clk 0:01:33]} 20. fxe3 {[%clk 0:01:40]}  Qc7 {[%clk 0:01:26]} 21. Ne5 {[%clk 0:01:39]}  Rxe5 {[%clk 0:01:23]} 22. dxe5 {[%clk 0:01:39]}  Qxe5 {[%clk 0:01:24]} 23. Kh2 {[%clk 0:01:24]}  Qxb2 {[%clk 0:01:08]} 24. Rf1 {[%clk 0:01:22]}  Bf6 {[%clk 0:01:03]} 25. Ne4 {[%clk 0:01:09]}  Bxe4 {[%clk 0:01:02]} 26. Qxe4 {[%clk 0:01:09]}  Qe5+ {[%clk 0:01:00]} 27. Qxe5 {[%clk 0:01:09]}  Bxe5+ {[%clk 0:01:01]} 28. Kh1 {[%clk 0:01:09]}  Bxa1 {[%clk 0:01:01]} 29. Rxa1 {[%clk 0:01:00]}  Re8 {[%clk 0:00:58]} 30. Rf1 {[%clk 0:01:00]}  Re7 {[%clk 0:00:48]} 31. e4 {[%clk 0:00:58]}  Kf8 {[%clk 0:00:48]} 32. a4 {[%clk 0:00:46]}  f6 {[%clk 0:00:41]} 33. Rc1 {[%clk 0:00:36]}  a5 {[%clk 0:00:31]} 34. Rb1 {[%clk 0:00:35]}  Rxe4 {[%clk 0:00:29]} 35. Bc2 {[%clk 0:00:32]}  Rb4 {[%clk 0:00:30]} 36. Re1 {[%clk 0:00:28]}  Nxa4 {[%clk 0:00:27]} 37. Bxh7 {[%clk 0:00:26]}  Kf7 {[%clk 0:00:20]} 38. Bf5 {[%clk 0:00:21]}  Nc5 {[%clk 0:00:15]} 39. g4 {[%clk 0:00:18]}  a4 {[%clk 0:00:15]} 40. h4 {[%clk 0:00:17]}  a3 {[%clk 0:00:15]} 41. h5 {[%clk 0:00:18]}  Ne4 {[%clk 0:00:07]} 42. Bxe4 {[%clk 0:00:17]}  Ke7 {[%clk 0:00:04]} 43. Bxc6+ {[%clk 0:00:16]}  Kd6 {[%clk 0:00:05]} 44. Bf3 {[%clk 0:00:14]}  a2 {[%clk 0:00:02]} 45. Rd1+ {[%clk 0:00:14]}  Kc5 {[%clk 0:00:02]} 46. Rc1+ {[%clk 0:00:14]}  Rc4 {[%clk 0:00:01]} 47. Ra1 {[%clk 0:00:14]}  Rc2 {[%clk 0:00:02]} 48. Be4 {[%clk 0:00:13]}  Rb2 {[%clk 0:00:02]} 49. Bf5 {[%clk 0:00:12]}  b5 {[%clk 0:00:02]} 50. h6 {[%clk 0:00:11]}  gxh6 {[%clk 0:00:02]} 51. Kg1 {[%clk 0:00:11]}  b4 {[%clk 0:00:02]} 52. Kf1 {[%clk 0:00:11]}  b3 {[%clk 0:00:02]} 53. Ke1 {[%clk 0:00:12]}  Rh2 {[%clk 0:00:03]} 54. Bd3 {[%clk 0:00:09]}  Kd4 {[%clk 0:00:01]} 55. Bf1 {[%clk 0:00:09]}  Kc3 {[%clk 0:00:02]} 56. Rc1+ {[%clk 0:00:09]}  Kb2 {[%clk 0:00:02]} 57. Rd1 {[%clk 0:00:10]}  a1=Q {[%clk 0:00:03]} 58. Rb1+ {[%clk 0:00:09]}  Qxb1# {[%clk 0:00:03]} 0-1


[Site "https://www.chess.com"]

[Event "Titled Tuesday Blitz August 24 2021"]
[White "Tokman, Ariel"]
[Black "Vlassov, Nikolai"]
[WhiteFideId "117420"]
[BlackFideId "4103360"]
[WhiteElo "2345"]
[BlackElo "2407"]
[Result "0-1"]
[Round "10"]
[TimeControl "180+1"]
[Date "2021.08.24"]
[WhiteClock "0:00:49"]
[BlackClock "0:01:08"]

1. e4 {[%clk 0:03:00]}  Nc6 {[%clk 0:02:59]} 2. Nf3 {[%clk 0:03:00]}  d5 {[%clk 0:03:00]} 3. exd5 {[%clk 0:03:00]}  Qxd5 {[%clk 0:03:00]} 4. Nc3 {[%clk 0:03:01]}  Qa5 {[%clk 0:03:01]} 5. d4 {[%clk 0:02:59]}  Bg4 {[%clk 0:03:01]} 6. Be2 {[%clk 0:02:56]}  O-O-O {[%clk 0:03:01]} 7. Be3 {[%clk 0:02:55]}  Bxf3 {[%clk 0:02:30]} 8. Bxf3 {[%clk 0:02:54]}  Nxd4 {[%clk 0:02:30]} 9. Bxd4 {[%clk 0:02:51]}  Qb4 {[%clk 0:02:30]} 10. O-O {[%clk 0:02:07]}  Rxd4 {[%clk 0:02:27]} 11. Qe2 {[%clk 0:02:05]}  e6 {[%clk 0:02:24]} 12. Rfd1 {[%clk 0:01:47]}  Bc5 {[%clk 0:02:18]} 13. Nb5 {[%clk 0:01:28]}  Rxd1+ {[%clk 0:02:13]} 14. Rxd1 {[%clk 0:01:29]}  Nf6 {[%clk 0:02:07]} 15. Qd3 {[%clk 0:01:22]}  a6 {[%clk 0:01:57]} 16. Nc3 {[%clk 0:01:15]}  Be7 {[%clk 0:01:51]} 17. a3 {[%clk 0:01:06]}  Qb6 {[%clk 0:01:45]} 18. Na4 {[%clk 0:01:06]}  Qb5 {[%clk 0:01:43]} 19. Qxb5 {[%clk 0:00:57]}  axb5 {[%clk 0:01:43]} 20. Nc3 {[%clk 0:00:57]}  c6 {[%clk 0:01:42]} 21. Kf1 {[%clk 0:00:58]}  Rd8 {[%clk 0:01:42]} 22. Rxd8+ {[%clk 0:00:57]}  Kxd8 {[%clk 0:01:42]} 23. Ne4 {[%clk 0:00:58]}  Nd7 {[%clk 0:01:37]} 24. g3 {[%clk 0:00:57]}  Kc7 {[%clk 0:01:36]} 25. Be2 {[%clk 0:00:55]}  f5 {[%clk 0:01:34]} 26. Nd2 {[%clk 0:00:54]}  Bf6 {[%clk 0:01:33]} 27. c3 {[%clk 0:00:55]}  Nb6 {[%clk 0:01:31]} 28. Bd1 {[%clk 0:00:54]}  Kd6 {[%clk 0:01:31]} 29. Ke2 {[%clk 0:00:54]}  e5 {[%clk 0:01:17]} 30. Bc2 {[%clk 0:00:52]}  g6 {[%clk 0:01:16]} 31. h4 {[%clk 0:00:51]}  e4 {[%clk 0:01:12]} 32. Nf1 {[%clk 0:00:49]}  Na4 {[%clk 0:01:08]} 0-1


[Site "https://www.chess.com"]

[Event "Titled Tuesday Blitz August 24 2021"]
[White "Tong, Hai Anh"]
[Black "Rodchenkov, Vitaly"]
[WhiteFideId "12412805"]
[BlackFideId "4152964"]
[WhiteElo "1467"]
[BlackElo "2337"]
[Result "0-1"]
[Round "10"]
[TimeControl "180+1"]
[Date "2021.08.24"]
[WhiteClock "0:00:02"]
[BlackClock "0:00:15"]

1. Nf3 {[%clk 0:02:57]}  Nf6 {[%clk 0:02:59]} 2. g3 {[%clk 0:02:57]}  b5 {[%clk 0:02:58]} 3. Bg2 {[%clk 0:02:58]}  Bb7 {[%clk 0:02:58]} 4. O-O {[%clk 0:02:58]}  e6 {[%clk 0:02:58]} 5. d4 {[%clk 0:02:58]}  d5 {[%clk 0:02:57]} 6. Ne5 {[%clk 0:02:58]}  c5 {[%clk 0:02:56]} 7. f4 {[%clk 0:02:59]}  Nbd7 {[%clk 0:02:57]} 8. c3 {[%clk 0:02:58]}  Be7 {[%clk 0:02:54]} 9. Be3 {[%clk 0:02:58]}  O-O {[%clk 0:02:53]} 10. Bf2 {[%clk 0:02:58]}  a5 {[%clk 0:02:53]} 11. Nd2 {[%clk 0:02:58]}  b4 {[%clk 0:02:53]} 12. Re1 {[%clk 0:02:59]}  Qb6 {[%clk 0:02:52]} 13. e4 {[%clk 0:02:58]}  dxe4 {[%clk 0:02:50]} 14. Nxe4 {[%clk 0:02:58]}  Rfd8 {[%clk 0:02:44]} 15. Nxf6+ {[%clk 0:02:57]}  Nxf6 {[%clk 0:02:41]} 16. dxc5 {[%clk 0:02:57]}  Bxc5 {[%clk 0:02:38]} 17. Qe2 {[%clk 0:02:57]}  Bxg2 {[%clk 0:02:35]} 18. Kxg2 {[%clk 0:02:57]}  bxc3 {[%clk 0:02:34]} 19. bxc3 {[%clk 0:02:55]}  Bxf2 {[%clk 0:02:34]} 20. Qxf2 {[%clk 0:02:55]}  Qc7 {[%clk 0:02:32]} 21. c4 {[%clk 0:02:51]}  Rac8 {[%clk 0:02:30]} 22. Rab1 {[%clk 0:02:45]}  h5 {[%clk 0:02:30]} 23. Qf3 {[%clk 0:02:44]}  Ng4 {[%clk 0:02:24]} 24. Nxg4 {[%clk 0:02:34]}  hxg4 {[%clk 0:02:24]} 25. Qxg4 {[%clk 0:02:34]}  Qxc4 {[%clk 0:02:24]} 26. Re2 {[%clk 0:02:32]}  a4 {[%clk 0:02:19]} 27. Qf3 {[%clk 0:02:09]}  Rd3 {[%clk 0:02:17]} 28. Qb7 {[%clk 0:02:06]}  Rcd8 {[%clk 0:02:15]} 29. Qb5 {[%clk 0:02:00]}  Qd4 {[%clk 0:02:05]} 30. Rb4 {[%clk 0:01:57]}  Qa1 {[%clk 0:02:02]} 31. Rb1 {[%clk 0:01:44]}  Qc3 {[%clk 0:01:48]} 32. Rbb2 {[%clk 0:01:40]}  a3 {[%clk 0:01:45]} 33. Rb3 {[%clk 0:01:38]}  Qd4 {[%clk 0:01:42]} 34. Qxd3 {[%clk 0:01:32]}  Qxd3 {[%clk 0:01:42]} 35. Rxd3 {[%clk 0:01:31]}  Rxd3 {[%clk 0:01:43]} 36. Rc2 {[%clk 0:01:29]}  g6 {[%clk 0:01:41]} 37. Kf2 {[%clk 0:01:26]}  Kg7 {[%clk 0:01:41]} 38. Ke2 {[%clk 0:01:25]}  Rd5 {[%clk 0:01:37]} 39. Rc3 {[%clk 0:01:24]}  Ra5 {[%clk 0:01:35]} 40. Kf3 {[%clk 0:01:18]}  Kf6 {[%clk 0:01:34]} 41. h4 {[%clk 0:01:15]}  Ra4 {[%clk 0:01:34]} 42. Rc5 {[%clk 0:01:03]}  Ke7 {[%clk 0:01:28]} 43. Ke3 {[%clk 0:01:01]}  Kd6 {[%clk 0:01:27]} 44. Rb5 {[%clk 0:00:58]}  Rc4 {[%clk 0:01:20]} 45. Rb3 {[%clk 0:00:52]}  Ra4 {[%clk 0:01:17]} 46. g4 {[%clk 0:00:49]}  Ke7 {[%clk 0:01:12]} 47. Kf3 {[%clk 0:00:44]}  f5 {[%clk 0:01:09]} 48. g5 {[%clk 0:00:40]}  Kf7 {[%clk 0:01:07]} 49. Rb7+ {[%clk 0:00:36]}  Kf8 {[%clk 0:01:06]} 50. Rb6 {[%clk 0:00:35]}  Ke7 {[%clk 0:00:58]} 51. Kg3 {[%clk 0:00:28]}  Rc4 {[%clk 0:00:51]} 52. Rb3 {[%clk 0:00:24]}  Ra4 {[%clk 0:00:49]} 53. h5 {[%clk 0:00:20]}  gxh5 {[%clk 0:00:48]} 54. Kh4 {[%clk 0:00:17]}  Rxf4+ {[%clk 0:00:47]} 55. Kxh5 {[%clk 0:00:16]}  Ra4 {[%clk 0:00:43]} 56. g6 {[%clk 0:00:14]}  Kf6 {[%clk 0:00:43]} 57. Rb8 {[%clk 0:00:13]}  Rg4 {[%clk 0:00:40]} 58. Rf8+ {[%clk 0:00:11]}  Kg7 {[%clk 0:00:40]} 59. Rf7+ {[%clk 0:00:05]}  Kg8 {[%clk 0:00:40]} 60. Ra7 {[%clk 0:00:04]}  Rg3 {[%clk 0:00:38]} 61. Kh6 {[%clk 0:00:04]}  Rh3+ {[%clk 0:00:39]} 62. Kg5 {[%clk 0:00:04]}  Rc3 {[%clk 0:00:17]} 63. Kf6 {[%clk 0:00:04]}  Rc8 {[%clk 0:00:17]} 64. Kxe6 {[%clk 0:00:04]}  f4 {[%clk 0:00:17]} 65. Rxa3 {[%clk 0:00:03]}  Kg7 {[%clk 0:00:15]} 66. Kf5 {[%clk 0:00:02]}  Rf8+ {[%clk 0:00:14]} 67. Kg5 {[%clk 0:00:02]}  f3 {[%clk 0:00:15]} 68. Ra7+ {[%clk 0:00:02]}  Kg8 {[%clk 0:00:15]} 0-1


[Site "https://www.chess.com"]